bitfinex-derivatives/quotes_BTCF0:USTF0_20250429
["timestamp","ask_amount","ask_price","bid_price","bid_amount"]
[1745900837021,0.005,94855.0,94854.0,0.26194681]
[1745900840319,0.005,94855.0,94854.0,0.40194681]
[1745900840716,0.005,94855.0,94854.0,0.41750868]
[1745900844125,0.005,94855.0,94854.0,0.41747966]
[1745900845221,0.005,94855.0,94854.0,0.41780283]
[1745900847110,0.1896945,94866.0,94864.0,0.1896978]
[1745900847315,0.1786945,94866.0,94865.0,0.30009107]
[1745900847623,0.1636945,94866.0,94865.0,0.30009107]
[1745900847923,0.220891,94868.0,94867.0,0.1896918]
[1745900848122,0.220891,94868.0,94867.0,0.20558707]
[1745900848319,0.06456,94873.0,94871.0,0.2371023]
[1745900848518,0.2542398,94873.0,94872.0,0.26927707]
[1745900849821,0.2602398,94873.0,94872.0,0.26927707]
[1745900850510,0.2918398,94873.0,94872.0,0.26927707]
[1745900850710,0.2968398,94873.0,94872.0,0.26927707]
[1745900851412,0.2128398,94873.0,94872.0,0.26927707]
[1745900851812,0.2058398,94873.0,94872.0,0.26927707]
[1745900852120,0.2108398,94873.0,94872.0,0.26899531]
[1745900852321,0.2443398,94873.0,94872.0,0.26899531]
[1745900852716,0.0741,94873.0,94872.0,0.26899531]
[1745900853317,0.2637798,94873.0,94872.0,0.26899531]
[1745900853823,0.009,94873.0,94872.0,0.26899531]
[1745900854719,0.009,94873.0,94872.0,0.2533818]
[1745900856624,0.009,94873.0,94872.0,0.7541818]
[1745900856823,0.06157506,94881.0,94877.0,0.1896718]
[1745900857026,0.0647,94880.0,94879.0,0.1896678]
[1745900857529,0.0647,94880.0,94878.0,0.0333]
[1745900857720,0.0647,94880.0,94879.0,0.1896678]
[1745900857922,0.2543658,94880.0,94879.0,0.1896678]
[1745900859327,0.2553658,94880.0,94879.0,0.1896678]
[1745900860128,0.2603658,94880.0,94879.0,0.1896678]
[1745900863720,0.006,94880.0,94879.0,0.3096678]
[1745900864326,0.13442775,94894.0,94893.0,0.1896399]
[1745900864627,0.001,94896.0,94895.0,0.1896359]
[1745900866317,0.001,94896.0,94895.0,0.2006359]
[1745900867432,0.1906339,94896.0,94895.0,0.024]
[1745900868319,0.2213339,94896.0,94895.0,0.024]
[1745900868924,0.2213339,94896.0,94895.0,0.2136359]
[1745900872831,0.2213339,94896.0,94895.0,0.2461359]
[1745900873932,0.2213339,94896.0,94895.0,0.0565]
[1745900875634,0.2213339,94896.0,94895.0,0.0872]
[1745900876228,0.2213339,94896.0,94895.0,0.2768359]
[1745900877338,0.001,94896.0,94895.0,0.2768359]
[1745900880728,0.1906339,94896.0,94895.0,0.2768359]
[1745900881635,0.001,94896.0,94895.0,0.2768359]
[1745900881940,0.1906339,94896.0,94895.0,0.2768359]
[1745900885344,0.001,94896.0,94895.0,0.4168359]
[1745900885831,0.001,94896.0,94895.0,0.2768359]
[1745900886231,0.001,94896.0,94895.0,0.2638359]
[1745900886543,0.1906339,94896.0,94895.0,0.2638359]
[1745900887546,0.1906339,94896.0,94895.0,0.0632]
[1745900887735,0.2223339,94896.0,94895.0,0.0632]
[1745900888342,0.1906339,94896.0,94895.0,0.2528359]
[1745900888739,0.001,94896.0,94895.0,0.2528359]
[1745900890050,0.1,94900.0,94899.0,0.1896279]
[1745900890345,0.1,94900.0,94899.0,0.5504279]
[1745900890944,0.1,94900.0,94899.0,0.6131279]
[1745900891643,0.1,94900.0,94899.0,0.6361279]
[1745900894746,0.2896259,94900.0,94899.0,0.6361279]
[1745900895843,0.1,94900.0,94899.0,0.6361279]
[1745900902746,0.1,94900.0,94899.0,0.6461279]
[1745900907255,0.1,94900.0,94899.0,0.6769279]
[1745900908255,0.1,94900.0,94899.0,0.6639279]
[1745900908455,0.1,94900.0,94899.0,0.6539279]
[1745900915565,0.2896259,94900.0,94899.0,0.6539279]
[1745900915766,0.1,94900.0,94899.0,0.6539279]
[1745900916863,0.2896259,94900.0,94899.0,0.3608]
[1745900917075,0.2896259,94900.0,94899.0,0.5504279]
[1745900917667,0.3537259,94900.0,94899.0,0.5504279]
[1745900918577,0.3537259,94900.0,94899.0,0.3608]
[1745900918778,0.4591019,94900.0,94899.0,0.3608]
[1745900919077,0.3537259,94900.0,94899.0,0.3608]
[1745900920469,0.2370617,94890.0,94887.0,0.0318]
[1745900920671,0.2370617,94890.0,94887.0,0.2688628]
[1745900920672,0.1896499,94888.0,94887.0,0.2688628]
[1745900921182,0.2549499,94888.0,94887.0,0.2688628]
[1745900921477,0.2549499,94888.0,94887.0,0.2708628]
[1745900922180,0.2549499,94888.0,94887.0,0.2718628]
[1745900923678,0.2549499,94888.0,94887.0,0.2708628]
[1745900923877,0.2549499,94888.0,94887.0,0.2718628]
[1745900924179,0.2549499,94888.0,94887.0,0.2698628]
[1745900924381,0.2549499,94888.0,94887.0,0.2688628]
[1745900927383,0.2226499,94888.0,94887.0,0.2688628]
[1745900931187,0.2226499,94888.0,94887.0,0.6296628]
[1745900938077,0.1896499,94888.0,94887.0,0.6296628]
[1745900939388,0.08051655,94895.0,94894.0,0.1896379]
[1745900939586,0.08051655,94895.0,94894.0,0.3196379]
[1745900939787,0.03061655,94895.0,94894.0,0.4250179]
[1745900940181,0.03061655,94895.0,94894.0,0.4881179]
[1745900940989,0.03061655,94895.0,94894.0,0.50166588]
[1745900941895,0.03061655,94895.0,94894.0,0.4881179]
[1745900942295,0.1,94900.0,94899.0,0.1896279]
[1745900942482,0.1,94900.0,94899.0,0.3196279]
[1745900943191,0.1,94900.0,94899.0,0.3827279]
[1745900958102,0.1,94900.0,94899.0,0.4427279]
[1745900961507,0.0015,94905.0,94904.0,0.1896179]
[1745900961707,0.0015,94905.0,94904.0,0.6904179]
[1745900962098,0.0015,94905.0,94904.0,0.7541179]
[1745900962994,0.0015,94905.0,94904.0,0.6141179]
[1745900964701,0.0015,94905.0,94904.0,0.62188621]
[1745900965598,0.2225159,94905.0,94904.0,0.62188621]
[1745900967408,0.2225159,94905.0,94904.0,0.26108621]
[1745900967609,0.2225159,94905.0,94904.0,0.62188621]
[1745900968206,0.2225159,94905.0,94904.0,0.59008621]
[1745900968408,0.2554159,94905.0,94904.0,0.59008621]
[1745900970306,0.0658,94905.0,94904.0,0.59008621]
[1745900970513,0.2554159,94905.0,94904.0,0.59008621]
[1745900970718,0.0658,94905.0,94904.0,0.59008621]
[1745900972216,0.0329,94905.0,94904.0,0.59008621]
[1745900976010,0.0015,94905.0,94904.0,0.59008621]
[1745900979322,0.2964839,94905.0,94904.0,0.00776831]
[1745900979524,0.1896259,94900.0,94896.0,0.0308]
[1745900980325,0.1896259,94900.0,94899.0,0.2496279]
[1745900980527,0.2525259,94900.0,94899.0,0.06]
[1745900982327,0.2525259,94900.0,94899.0,0.2496279]
[1745900984530,0.2525259,94900.0,94899.0,0.25759975]
[1745900986329,0.2525259,94900.0,94899.0,0.06797185]
[1745900986921,0.2525259,94900.0,94899.0,0.09887185]
[1745900987631,0.2525259,94900.0,94899.0,0.06797185]
[1745900988822,0.2525259,94900.0,94899.0,0.09887185]
[1745900991531,0.2525259,94900.0,94899.0,0.28849975]
[1745900993623,0.1896259,94900.0,94899.0,0.28849975]
[1745900997729,0.0474058,94902.0,94901.0,0.1896219]
[1745900997730,0.1896232,94902.0,94901.0,0.1896219]
[1745900998237,0.1896232,94902.0,94901.0,0.2548219]
[1745900998627,0.46960679,94905.0,94902.0,0.047405]
[1745900998829,0.65922659,94905.0,94904.0,0.1896179]
[1745900999432,0.65922659,94905.0,94904.0,0.2550179]
[1745901001339,0.29842659,94905.0,94904.0,0.2550179]
[1745901003037,0.10880679,94905.0,94904.0,0.3750179]
[1745901003933,0.10880679,94905.0,94904.0,0.2550179]
[1745901004933,0.0015,94905.0,94904.0,0.6158179]
[1745901005839,0.1911159,94905.0,94904.0,0.6158179]
[1745901008533,0.1911159,94905.0,94904.0,0.2550179]
[1745901008825,0.1911159,94905.0,94904.0,0.6158179]
[1745901009428,0.0015,94905.0,94904.0,0.6158179]
[1745901009936,0.1911159,94905.0,94904.0,0.6158179]
[1745901010236,0.1911159,94905.0,94904.0,0.0654]
[1745901010829,0.2529159,94905.0,94904.0,0.2550179]
[1745901020745,0.2529159,94905.0,94904.0,0.0654]
[1745901024046,0.2849159,94905.0,94904.0,0.0654]
[1745901027335,0.2529159,94905.0,94904.0,0.0654]
[1745901031445,0.2217159,94905.0,94904.0,0.0654]
[1745901031943,0.1911159,94905.0,94904.0,0.0654]
[1745901037047,0.1921159,94905.0,94904.0,0.0654]
[1745901040140,0.1941159,94905.0,94904.0,0.3950179]
[1745901040541,0.1931159,94905.0,94904.0,0.3950179]
[1745901040748,0.1951159,94905.0,94904.0,0.3950179]
[1745901041048,0.1951159,94905.0,94904.0,0.2550179]
[1745901041646,0.1931159,94905.0,94904.0,0.2550179]
[1745901041855,0.1951159,94905.0,94904.0,0.2550179]
[1745901048244,0.1951159,94905.0,94904.0,0.0654]
[1745901048652,0.1951159,94905.0,94904.0,0.2550179]
[1745901048951,0.3025786,94905.0,94904.0,0.2550179]
[1745901051050,0.3015786,94905.0,94904.0,0.2550179]
[1745901051252,0.2995786,94905.0,94904.0,0.2550179]
[1745901051552,0.3015786,94905.0,94904.0,0.2550179]
[1745901052551,0.3025786,94905.0,94904.0,0.2550179]
[1745901053448,0.3015786,94905.0,94904.0,0.2550179]
[1745901054554,0.2995786,94905.0,94904.0,0.2550179]
[1745901054755,0.3015786,94905.0,94904.0,0.2550179]
[1745901055754,0.3005786,94905.0,94904.0,0.2550179]
[1745901055955,0.3025786,94905.0,94904.0,0.2550179]
[1745901056351,0.3005786,94905.0,94904.0,0.2550179]
[1745901056551,0.3015786,94905.0,94904.0,0.2550179]
[1745901056850,0.2995786,94905.0,94904.0,0.2550179]
[1745901057054,0.1941159,94905.0,94904.0,0.2550179]
[1745901061260,0.1941159,94905.0,94904.0,0.3750179]
[1745901062560,0.1931159,94905.0,94904.0,0.3750179]
[1745901062761,0.1941159,94905.0,94904.0,0.3750179]
[1745901063861,0.1921159,94905.0,94904.0,0.3750179]
[1745901064054,0.1941159,94905.0,94904.0,0.3750179]
[1745901064453,0.1921159,94905.0,94904.0,0.3750179]
[1745901064655,0.1941159,94905.0,94904.0,0.3750179]
[1745901067060,0.1931159,94905.0,94904.0,0.3750179]
[1745901067262,0.1941159,94905.0,94904.0,0.3750179]
[1745901069355,0.1931159,94905.0,94904.0,0.3750179]
[1745901069664,0.1941159,94905.0,94904.0,0.3750179]
[1745901070167,0.1921159,94905.0,94904.0,0.3750179]
[1745901070464,0.1941159,94905.0,94904.0,0.2550179]
[1745901075765,0.1896219,94902.0,94901.0,0.3608]
[1745901075967,0.1896259,94900.0,94891.0,0.0306]
[1745901076169,0.1896439,94891.0,94890.0,0.0324]
[1745901077469,0.2226439,94891.0,94890.0,0.0334]
[1745901077767,0.2532439,94891.0,94890.0,0.0334]
[1745901078469,0.2542439,94891.0,94890.0,0.0334]
[1745901079168,0.2572439,94891.0,94890.0,0.0324]
[1745901079359,0.2572439,94891.0,94890.0,0.04044098]
[1745901083375,0.2572439,94891.0,94890.0,0.00804098]
[1745901083668,0.2370766,94885.0,94884.0,0.1896503]
[1745901084080,0.2683766,94885.0,94884.0,0.1896503]
[1745901084887,0.2703766,94885.0,94884.0,0.1896503]
[1745901085479,0.28256175,94885.0,94884.0,0.1896503]
[1745901088275,0.002,94885.0,94884.0,0.34745493]
[1745901088582,0.002,94885.0,94884.0,0.45284693]
[1745901089172,0.001,94885.0,94884.0,0.57284693]
[1745901089377,0.08043325,94892.0,94890.0,0.1896439]
[1745901089587,0.08043325,94892.0,94891.0,0.6114439]
[1745901089784,0.08043325,94892.0,94891.0,0.7514439]
[1745901090385,0.27007515,94892.0,94891.0,0.7514439]
[1745901090588,0.27007515,94892.0,94891.0,0.7524439]
[1745901091995,0.1896419,94892.0,94891.0,0.7524439]
[1745901092192,0.1896419,94892.0,94891.0,0.7544439]
[1745901092877,0.1896419,94892.0,94891.0,0.7534439]
[1745901093888,0.047408,94897.0,94894.0,0.2370429]
[1745901093889,0.1896378,94895.0,94894.0,0.2370429]
[1745901094089,0.1896378,94895.0,94894.0,0.3895429]
[1745901095182,0.0474008,94912.0,94904.0,0.1896179]
[1745901095384,0.1896084,94909.0,94904.0,0.6904179]
[1745901095582,0.01222523,94910.0,94904.0,0.6904179]
[1745901095783,0.1896085,94909.0,94904.0,0.6904179]
[1745901095985,0.1896085,94909.0,94904.0,0.7512179]
[1745901096486,0.0035,94905.0,94904.0,0.7512179]
[1745901096886,0.0015,94905.0,94904.0,0.7512179]
[1745901097088,0.0035,94905.0,94904.0,0.8712179]
[1745901097586,0.0045,94905.0,94904.0,0.8712179]
[1745901101192,0.0045,94905.0,94904.0,0.7512179]
[1745901102891,0.0045,94905.0,94904.0,0.3904179]
[1745901103088,0.1801065,94910.0,94909.0,0.1896079]
[1745901103591,0.1731065,94910.0,94909.0,0.1896079]
[1745901103782,0.1731065,94910.0,94909.0,0.9112079]
[1745901104089,0.1731065,94910.0,94909.0,0.9738079]
[1745901104291,0.1751065,94910.0,94909.0,0.9738079]
[1745901108498,0.1895994,94918.0,94917.0,0.2369855]
[1745901108697,0.1895994,94918.0,94917.0,0.6946855]
[1745901110501,0.1895994,94918.0,94917.0,0.6632855]
[1745901110701,0.2204994,94918.0,94917.0,0.6632855]
[1745901111201,0.2204994,94918.0,94917.0,0.6158879]
[1745901113109,0.2518994,94918.0,94917.0,0.6158879]
[1745901113396,0.2518994,94918.0,94917.0,0.5503879]
[1745901113601,0.2518994,94918.0,94917.0,0.3608]
[1745901118903,0.2518994,94918.0,94917.0,0.3918]
[1745901121802,0.2518994,94918.0,94917.0,0.031]
[1745901127322,0.35936607,94918.0,94917.0,0.031]
[1745901129307,0.35936607,94918.0,94917.0,0.2205919]
[1745901130416,0.32796607,94918.0,94917.0,0.031]
[1745901131415,0.2204994,94918.0,94917.0,0.031]
[1745901132117,0.2204994,94918.0,94917.0,0.0611]
[1745901144135,0.3404994,94918.0,94917.0,0.0611]
[1745901155941,0.3095994,94918.0,94917.0,0.0611]
[1745901157149,0.1895994,94918.0,94917.0,0.0611]
[1745901157953,0.1895994,94918.0,94917.0,0.2506919]
[1745901158151,0.3095994,94918.0,94917.0,0.0611]
[1745901160555,0.3095994,94918.0,94917.0,0.2506919]
[1745901161756,0.3095994,94918.0,94917.0,0.0611]
[1745901164653,0.3413994,94918.0,94917.0,0.0611]
[1745901165352,0.0474034,94907.0,94893.0,0.16101405]
[1745901165546,0.257156,94918.0,94893.0,0.16101405]
[1745901165547,0.1896259,94900.0,94893.0,0.16101405]
[1745901166650,0.1896259,94900.0,94894.0,0.0316]
[1745901166850,0.1896259,94900.0,94899.0,0.5554279]
[1745901167559,0.1896259,94900.0,94899.0,0.5524279]
[1745901167755,0.1896259,94900.0,94899.0,0.5544279]
[1745901168461,0.1896259,94900.0,94899.0,0.5524279]
[1745901168966,0.1896259,94900.0,94899.0,0.6134279]
[1745901169462,0.1896259,94900.0,94899.0,0.6124279]
[1745901170062,0.1896259,94900.0,94899.0,0.2516279]
[1745901170261,0.1896259,94900.0,94899.0,0.6124279]
[1745901173665,0.1896259,94900.0,94899.0,0.2516279]
[1745901173867,0.1896259,94900.0,94899.0,0.6124279]
[1745901174062,0.3096259,94900.0,94899.0,0.6124279]
[1745901175467,0.3401259,94900.0,94899.0,0.6124279]
[1745901175669,0.3401259,94900.0,94899.0,0.4228]
[1745901176061,0.3401259,94900.0,94899.0,0.6124279]
[1745901179268,0.3401259,94900.0,94899.0,0.4228]
[1745901179763,0.3401259,94900.0,94899.0,0.062]
[1745901180563,0.3401259,94900.0,94899.0,0.0313]
[1745901184770,0.3401259,94900.0,94899.0,0.0303]
[1745901184961,0.3401259,94900.0,94899.0,0.0313]
[1745901186763,0.3401259,94900.0,94899.0,0.0303]
[1745901187663,0.3401259,94900.0,94891.0,0.00158073]
[1745901187664,0.0474078,94898.0,94891.0,0.00158073]
[1745901187869,0.5504419,94892.0,94891.0,0.00158073]
[1745901188063,0.6704419,94892.0,94891.0,0.00158073]
[1745901188268,0.1896459,94890.0,94889.0,0.0321]
[1745901188671,0.1896499,94888.0,94887.0,0.00158082]
[1745901189175,0.3096499,94888.0,94887.0,0.00158082]
[1745901189370,0.1896538,94886.0,94885.0,0.0303]
[1745901190263,0.3096538,94886.0,94885.0,0.0303]
[1745901190976,0.3096538,94886.0,94885.0,0.0951]
[1745901191863,0.3096538,94886.0,94885.0,0.0961]
[1745901192064,0.32126807,94886.0,94885.0,0.0961]
[1745901192269,0.20126807,94886.0,94885.0,0.0961]
[1745901193073,0.32126807,94886.0,94885.0,0.0961]
[1745901196778,0.32126807,94886.0,94885.0,0.2857558]
[1745901197279,0.32126807,94886.0,94885.0,0.0961]
[1745901200675,0.32126807,94886.0,94885.0,0.2857558]
[1745901202281,0.20126807,94886.0,94885.0,0.2857558]
[1745901203281,0.23226807,94886.0,94885.0,0.2857558]
[1745901205177,0.35226807,94886.0,94885.0,0.2857558]
[1745901206277,0.23226807,94886.0,94885.0,0.2857558]
[1745901208086,0.35226807,94886.0,94885.0,0.2857558]
[1745901209091,0.23226807,94886.0,94885.0,0.2857558]
[1745901211090,0.35226807,94886.0,94885.0,0.2857558]
[1745901211296,0.35226807,94886.0,94885.0,0.0961]
[1745901211490,0.38406807,94886.0,94885.0,0.0961]
[1745901212688,0.1896558,94885.0,94884.0,0.00780463]
[1745901212894,0.1896798,94878.0,94877.0,0.1896628]
[1745901213189,0.1896798,94878.0,94877.0,0.2210628]
[1745901213392,0.1896798,94878.0,94877.0,0.2684797]
[1745901213782,0.2221798,94878.0,94877.0,0.2210628]
[1745901214388,0.2221798,94878.0,94877.0,0.03943107]
[1745901214693,0.1896778,94874.0,94873.0,0.0332]
[1745901215592,0.2502778,94874.0,94873.0,0.0332]
[1745901215790,0.2502778,94874.0,94873.0,0.2228798]
[1745901215986,0.2502778,94874.0,94873.0,0.2248798]
[1745901216185,0.3702778,94874.0,94873.0,0.2248798]
[1745901216387,0.3702778,94874.0,94873.0,0.2278798]
[1745901217294,0.3702778,94874.0,94873.0,0.23577567]
[1745901218590,0.3702778,94874.0,94873.0,0.04609587]
[1745901218785,0.3702778,94874.0,94873.0,0.01289587]
[1745901224791,0.45077071,94874.0,94873.0,0.01289587]
[1745901228805,0.1896938,94866.0,94865.0,0.00263506]
[1745901229004,0.5504938,94866.0,94865.0,0.00263506]
[1745901229202,0.0474239,94865.0,94861.0,0.0315]
[1745901229405,0.1897018,94862.0,94861.0,0.0315]
[1745901229905,0.1897378,94847.0,94846.0,0.1897291]
[1745901230086,0.1897378,94847.0,94846.0,0.2771625]
[1745901231202,0.3097378,94847.0,94846.0,0.2297291]
[1745901231402,0.3421378,94847.0,94846.0,0.2297291]
[1745901231603,0.3421378,94847.0,94846.0,0.2347291]
[1745901231902,0.3421378,94847.0,94846.0,0.2666291]
[1745901232094,0.3421378,94847.0,94846.0,0.27454429]
[1745901232295,0.3421378,94847.0,94846.0,0.27854429]
[1745901232697,0.3421378,94847.0,94846.0,0.31114429]
[1745901233302,0.2221378,94847.0,94846.0,0.31114429]
[1745901239102,0.3421378,94847.0,94846.0,0.31114429]
[1745901242309,0.2221378,94847.0,94846.0,0.31114429]
[1745901243307,0.3421378,94847.0,94846.0,0.31114429]
[1745901249411,0.2221378,94847.0,94846.0,0.31114429]
[1745901250113,0.3421378,94847.0,94846.0,0.31114429]
[1745901250513,0.12,94847.0,94846.0,0.31114429]
[1745901251106,0.0652,94856.0,94853.0,0.2371453]
[1745901251315,0.1897178,94855.0,94854.0,0.0625]
[1745901251709,0.2529178,94855.0,94854.0,0.0625]
[1745901252211,0.3729178,94855.0,94854.0,0.0625]
[1745901252802,0.3729178,94855.0,94854.0,0.2552158]
[1745901254210,0.2529178,94855.0,94854.0,0.2582158]
[1745901254608,0.0632,94855.0,94854.0,0.2894158]
[1745901254912,0.0322,94855.0,94854.0,0.2894158]
[1745901255917,0.2219158,94855.0,94854.0,0.2894158]
[1745901257315,0.0322,94855.0,94854.0,0.4294158]
[1745901258809,0.08049291,94860.0,94859.0,0.1897078]
[1745901259011,0.08049291,94860.0,94859.0,0.3097078]
[1745901260015,0.08049291,94860.0,94859.0,0.3419078]
[1745901260414,0.189702,94862.0,94861.0,0.1897038]
[1745901260615,0.189702,94862.0,94861.0,0.3097038]
[1745901261016,0.189702,94862.0,94861.0,0.3731038]
[1745901261813,0.189702,94862.0,94861.0,0.3741038]
[1745901263222,0.189702,94862.0,94861.0,0.3761038]
[1745901264127,0.2219987,94864.0,94863.0,0.1896998]
[1745901264327,0.2219987,94864.0,94863.0,0.3096998]
[1745901265226,0.2219987,94864.0,94863.0,0.3418998]
[1745901265523,0.2219987,94864.0,94863.0,0.3428998]
[1745901271426,0.2219987,94864.0,94863.0,0.2228998]
[1745901271627,0.2219987,94864.0,94863.0,0.1916998]
[1745901272329,0.3419987,94864.0,94863.0,0.1916998]
[1745901275828,0.7027987,94864.0,94863.0,0.1916998]
[1745901276027,0.7353987,94864.0,94863.0,0.1916998]
[1745901277322,0.7353987,94864.0,94863.0,0.002]
[1745901281722,0.84278056,94864.0,94863.0,0.002]
[1745901284131,0.90710056,94864.0,94863.0,0.002]
[1745901286125,0.7997187,94864.0,94863.0,0.002]
[1745901299944,0.61002,94864.0,94830.0,0.06528839]
[1745901300144,0.1897318,94847.0,94846.0,0.19764899]
[1745901300336,0.1897318,94847.0,94846.0,0.1897338]
[1745901301356,0.1897318,94847.0,94846.0,0.19767818]
[1745901302037,0.1897318,94847.0,94846.0,0.20167818]
[1745901302643,0.1897318,94847.0,94846.0,0.20667818]
[1745901309043,0.2215318,94847.0,94846.0,0.20667818]
[1745901314855,0.2543318,94847.0,94846.0,0.20667818]
[1745901315243,0.3743318,94847.0,94846.0,0.20667818]
[1745901319057,0.3743318,94847.0,94846.0,0.01694438]
[1745901320552,0.1897418,94842.0,94841.0,0.0302]
[1745901320747,0.0474349,94843.0,94834.0,0.0318]
[1745901320949,0.5505538,94836.0,94829.0,0.0325]
[1745901321155,0.5505538,94836.0,94832.0,0.189761]
[1745901321766,0.6114538,94836.0,94832.0,0.189761]
[1745901322165,0.7314538,94836.0,94832.0,0.189761]
[1745901322464,0.7314538,94836.0,94835.0,0.00605446]
[1745901323156,0.7314538,94836.0,94835.0,0.00905446]
[1745901324269,0.7314538,94836.0,94835.0,0.01704829]
[1745901324867,0.74256314,94836.0,94835.0,0.01704829]
[1745901330969,0.38176314,94836.0,94835.0,0.01704829]
[1745901331269,0.74256314,94836.0,94835.0,0.01704829]
[1745901331584,0.38176314,94836.0,94835.0,0.01704829]
[1745901331783,0.74256314,94836.0,94835.0,0.01704829]
[1745901332683,0.38176314,94836.0,94835.0,0.01704829]
[1745901332983,0.74256314,94836.0,94835.0,0.01704829]
[1745901339789,0.74256314,94836.0,94835.0,0.20680409]
[1745901351193,0.74256314,94836.0,94835.0,0.20580409]
[1745901351694,0.74256314,94836.0,94835.0,0.20380409]
[1745901352301,0.74256314,94836.0,94835.0,0.01404829]
[1745901355799,0.55280934,94836.0,94819.0,0.1897869]
[1745901356010,0.1897839,94822.0,94821.0,0.1897827]
[1745901356192,0.1897839,94822.0,94821.0,0.2197827]
[1745901356593,0.2508839,94822.0,94821.0,0.2197827]
[1745901357294,0.2508839,94822.0,94821.0,0.2247827]
[1745901358702,0.2508839,94822.0,94821.0,0.23278087]
[1745901359094,0.2508839,94822.0,94821.0,0.23578087]
[1745901359295,0.2508839,94822.0,94821.0,0.04599817]
[1745901359505,0.2508839,94822.0,94821.0,0.04299817]
[1745901360095,0.3708839,94822.0,94821.0,0.04299817]
[1745901360294,0.3708839,94822.0,94821.0,0.23278207]
[1745901361703,0.3708839,94822.0,94821.0,0.04299817]
[1745901361903,0.4035839,94822.0,94821.0,0.04299817]
[1745901362403,0.4035839,94822.0,94821.0,0.23278207]
[1745901363003,0.4035839,94822.0,94821.0,0.04299817]
[1745901364305,0.7643839,94822.0,94821.0,0.04299817]
[1745901365308,0.4035839,94822.0,94821.0,0.04299817]
[1745901365604,0.7643839,94822.0,94821.0,0.04299817]
[1745901365803,0.7643839,94822.0,94821.0,0.23278207]
[1745901368005,0.7643839,94822.0,94821.0,0.22978207]
[1745901368204,0.7643839,94822.0,94821.0,0.23178207]
[1745901370099,0.4035839,94822.0,94821.0,0.23178207]
[1745901370299,0.7643839,94822.0,94821.0,0.23178207]
[1745901373112,0.4035839,94822.0,94821.0,0.23178207]
[1745901373407,0.7643839,94822.0,94821.0,0.04199817]
[1745901375307,0.7643839,94822.0,94821.0,0.034]
[1745901375608,0.1898139,94806.0,94800.0,0.1]
[1745901375804,0.1898139,94806.0,94805.0,0.00891048]
[1745901376000,0.1898139,94806.0,94805.0,0.19087069]
[1745901376200,0.3729139,94806.0,94805.0,0.19087069]
[1745901376804,0.3729139,94806.0,94805.0,0.19387069]
[1745901376999,0.38432935,94806.0,94805.0,0.19387069]
[1745901377905,0.38432935,94806.0,94805.0,0.00405479]
[1745901378513,0.38432935,94806.0,94805.0,0.00605479]
[1745901379307,0.1898239,94801.0,94800.0,0.1]
[1745901379705,0.1898319,94797.0,94796.0,0.16101405]
[1745901379905,0.5506319,94797.0,94796.0,0.16101405]
[1745901380211,0.6706319,94797.0,94796.0,0.16101405]
[1745901380414,0.6706319,94797.0,94787.0,0.0325]
[1745901380415,0.1898499,94788.0,94787.0,0.0325]
[1745901380716,0.1898499,94788.0,94787.0,0.0425]
[1745901380904,0.1898499,94788.0,94787.0,0.2323519]
[1745901381105,0.3098499,94788.0,94787.0,0.2323519]
[1745901381302,0.3732499,94788.0,94787.0,0.2323519]
[1745901381706,0.3732499,94788.0,94787.0,0.0455]
[1745901382702,0.3732499,94788.0,94787.0,0.05337166]
[1745901382912,0.1898519,94787.0,94786.0,0.00158217]
[1745901383111,0.2221519,94787.0,94786.0,0.00158217]
[1745901383414,0.2855519,94787.0,94786.0,0.00158217]
[1745901384109,0.4055519,94787.0,94786.0,0.00158217]
[1745901384313,0.1898599,94783.0,94782.0,0.00158257]
[1745901384712,0.1898599,94783.0,94770.0,0.0474713]
[1745901384713,0.189874,94776.0,94773.0,0.1898795]
[1745901384914,0.550674,94776.0,94754.0,0.00158284]
[1745901385222,0.189892,94767.0,94766.0,0.0311]
[1745901385418,0.20100299,94767.0,94766.0,0.0311]
[1745901385617,0.56180299,94767.0,94766.0,0.0311]
[1745901386217,0.74370299,94767.0,94766.0,0.220994]
[1745901386614,0.732592,94767.0,94766.0,0.220994]
[1745901388024,0.732592,94767.0,94766.0,0.22903974]
[1745901388322,0.74356447,94767.0,94766.0,0.22903974]
[1745901388523,0.732592,94767.0,94766.0,0.22903974]
[1745901390520,0.732592,94767.0,94766.0,0.03914574]
[1745901390720,0.732592,94767.0,94766.0,0.22903974]
[1745901391811,0.732592,94767.0,94766.0,0.25773974]
[1745901392010,0.732592,94767.0,94766.0,0.29033974]
[1745901394419,0.732592,94767.0,94766.0,0.26163974]
[1745901407132,0.732592,94767.0,94766.0,0.03914574]
[1745901407426,0.732592,94767.0,94766.0,0.19793974]
[1745901432551,0.371792,94767.0,94766.0,0.19793974]
[1745901438542,0.732592,94767.0,94766.0,0.19793974]
[1745901443141,0.612592,94767.0,94766.0,0.19793974]
[1745901444245,0.732592,94767.0,94766.0,0.19793974]
[1745901448251,0.612592,94767.0,94766.0,0.19793974]
[1745901449143,0.732592,94767.0,94766.0,0.19793974]
[1745901451357,0.612592,94767.0,94766.0,0.19793974]
[1745901452249,0.732592,94767.0,94766.0,0.19793974]
[1745901453258,0.612592,94767.0,94766.0,0.19793974]
[1745901455061,0.732592,94767.0,94766.0,0.19793974]
[1745901456163,0.582392,94767.0,94766.0,0.19793974]
[1745901456363,0.10738186,94771.0,94770.0,0.189886]
[1745901456667,0.10738186,94771.0,94770.0,0.700686]
[1745901457364,0.29726586,94771.0,94770.0,0.729386]
[1745901457562,0.29826586,94771.0,94770.0,0.368586]
[1745901459159,0.41826586,94771.0,94770.0,0.339886]
[1745901460064,0.375284,94771.0,94770.0,0.339886]
[1745901460256,0.255284,94771.0,94770.0,0.339886]
[1745901462682,0.616084,94771.0,94770.0,0.339886]
[1745901462979,0.616084,94771.0,94770.0,0.15]
[1745901463186,0.736084,94771.0,94770.0,0.15]
[1745901463477,0.121,94771.0,94770.0,0.319886]
[1745901463668,0.121,94771.0,94770.0,0.42540599]
[1745901463873,0.06532,94797.0,94782.0,0.1898619]
[1745901464070,0.0333,94791.0,94782.0,0.6806619]
[1745901464273,0.13442775,94789.0,94788.0,0.237312]
[1745901464474,0.13442775,94789.0,94788.0,0.367312]
[1745901465178,0.13442775,94789.0,94788.0,0.551012]
[1745901465378,0.11372775,94789.0,94788.0,0.551012]
[1745901465679,0.30157565,94789.0,94788.0,0.551012]
[1745901466075,0.30157565,94789.0,94788.0,0.431012]
[1745901466268,0.30457565,94789.0,94788.0,0.431012]
[1745901466779,0.30357565,94789.0,94788.0,0.431012]
[1745901466978,0.30657565,94789.0,94788.0,0.431012]
[1745901467583,0.30757565,94789.0,94788.0,0.431012]
[1745901468081,0.2291479,94789.0,94788.0,0.431012]
[1745901468981,0.0474643,94785.0,94770.0,0.42608839]
[1745901469187,0.1898619,94782.0,94781.0,0.1898604]